[Event "*** Titled Tuesday Blitz"]
[Site "Chess.com"]
[Date "2020.04.07"]
[Round "8"]
[White "Pudor"]
[Black "GMKrikor"]
[Result "1-0"]
[WhiteElo "2374"]
[BlackElo "2748"]
[TimeControl "180+1"]
[EndTime "14:34:56 PDT"]
[Termination "Pudor won by resignation"]

1. d4 {[%clk 0:03:00.6]} 1... Nf6 {[%clk 0:02:59.7]} 2. c4 {[%clk 0:02:59.4]}
2... g6 {[%clk 0:03:00.2]} 3. Nc3 {[%clk 0:02:58.5]} 3... d5 {[%clk 0:03:00.5]}
4. Nf3 {[%clk 0:02:57.6]} 4... Bg7 {[%clk 0:03:00.1]} 5. cxd5 {[%clk 0:02:57.1]}
5... Nxd5 {[%clk 0:03:00.1]} 6. e4 {[%clk 0:02:56.9]} 6... Nxc3 {[%clk
0:03:00.5]} 7. bxc3 {[%clk 0:02:56.9]} 7... c5 {[%clk 0:03:01.3]} 8. Rb1 {[%clk
0:02:56.9]} 8... O-O {[%clk 0:03:00.1]} 9. Be2 {[%clk 0:02:54.9]} 9... Qc7
{[%clk 0:03:00.1]} 10. O-O {[%clk 0:02:53.6]} 10... b6 {[%clk 0:03:00.8]} 11.
Bg5 {[%clk 0:02:49.7]} 11... Nc6 {[%clk 0:02:52.5]} 12. d5 {[%clk 0:02:44.3]}
12... Ne5 {[%clk 0:02:52.2]} 13. c4 {[%clk 0:02:37.6]} 13... f5 {[%clk 0:02:49]}
14. exf5 {[%clk 0:02:28.6]} 14... Bxf5 {[%clk 0:02:46.4]} 15. Rc1 {[%clk
0:02:25.7]} 15... Rae8 {[%clk 0:02:18.3]} 16. Qd2 {[%clk 0:02:22]} 16... Nf7
{[%clk 0:02:01.7]} 17. Bf4 {[%clk 0:02:18.8]} 17... Qd7 {[%clk 0:02:01.8]} 18.
Rfd1 {[%clk 0:01:59.3]} 18... e6 {[%clk 0:01:58.5]} 19. Bg3 {[%clk 0:01:35.6]}
19... exd5 {[%clk 0:01:55.3]} 20. cxd5 {[%clk 0:01:33.8]} 20... Nd6 {[%clk
0:01:48.1]} 21. Ng5 {[%clk 0:01:19.4]} 21... Ne4 {[%clk 0:01:27.3]} 22. Nxe4
{[%clk 0:01:15.6]} 22... Bxe4 {[%clk 0:01:28.2]} 23. d6 {[%clk 0:01:09.9]} 23...
Bd4 {[%clk 0:01:21]} 24. Qh6 {[%clk 0:00:57]} 24... Qf5 {[%clk 0:01:11.9]} 25.
Rxd4 {[%clk 0:00:45.6]} 25... cxd4 {[%clk 0:01:12.8]} 26. Rc7 {[%clk 0:00:45.3]}
26... Rf7 {[%clk 0:01:10.3]} 27. h3 {[%clk 0:00:33]} 27... Qe6 {[%clk
0:00:22.3]} 28. Bg4 {[%clk 0:00:28.8]} 28... Bf5 {[%clk 0:00:22.4]} 29. Bf3
{[%clk 0:00:21.1]} 29... d3 {[%clk 0:00:20.5]} 30. Kh2 {[%clk 0:00:17.9]} 30...
Rd8 {[%clk 0:00:20.3]} 31. Qg5 {[%clk 0:00:14.8]} 31... Rdf8 {[%clk 0:00:11.6]}
32. h4 {[%clk 0:00:14.5]} 32... Qf6 {[%clk 0:00:08.5]} 33. Qh6 {[%clk
0:00:12.9]} 33... Qg7 {[%clk 0:00:07.4]} 34. Qe3 {[%clk 0:00:10.1]} 34... Qf6
{[%clk 0:00:05.6]} 35. Bd5 {[%clk 0:00:09.7]} 35... h5 {[%clk 0:00:03.9]} 36.
Rxf7 {[%clk 0:00:08.6]} 36... Rxf7 {[%clk 0:00:04]} 37. Qe8+ {[%clk 0:00:08.2]}
37... Kh7 {[%clk 0:00:02.3]} 38. Qxf7+ {[%clk 0:00:06.8]} 38... Qxf7 {[%clk
0:00:01.9]} 39. Bxf7 {[%clk 0:00:07.7]} 39... d2 {[%clk 0:00:01.8]} 40. Bb3
{[%clk 0:00:08.1]} 40... Kg7 {[%clk 0:00:02.4]} 41. Be5+ {[%clk 0:00:07.6]}
41... Kf8 {[%clk 0:00:02.5]} 42. f3 {[%clk 0:00:08.5]} 42... Ke8 {[%clk
0:00:02.8]} 43. Kg3 {[%clk 0:00:08.5]} 43... Be6 {[%clk 0:00:03.7]} 44. Bd1
{[%clk 0:00:06.7]} 44... Bxa2 {[%clk 0:00:03.4]} 45. Kf2 {[%clk 0:00:07.6]}
45... Be6 {[%clk 0:00:02.1]} 46. Ke3 {[%clk 0:00:07.7]} 46... Bc4 {[%clk
0:00:02.7]} 47. Kxd2 {[%clk 0:00:07.5]} 47... Bf1 {[%clk 0:00:03.6]} 48. g3
{[%clk 0:00:07.9]} 48... Bc4 {[%clk 0:00:02.3]} 49. f4 {[%clk 0:00:08.2]} 49...
b5 {[%clk 0:00:02.5]} 50. Kc3 {[%clk 0:00:08.4]} 50... Bf7 {[%clk 0:00:02.3]}
51. Kd4 {[%clk 0:00:08.5]} 51... a5 {[%clk 0:00:02.3]} 52. Bf3 {[%clk
0:00:08.3]} 52... a4 {[%clk 0:00:01.7]} 1-0

[Event "*** Titled Tuesday Blitz"]
[Site "Chess.com"]
[Date "2020.04.07"]
[Round "8"]
[White "Sunnika"]
[Black "hamelekh"]
[Result "1/2-1/2"]
[WhiteElo "2374"]
[BlackElo "2775"]
[TimeControl "180+1"]
[EndTime "14:35:00 PDT"]
[Termination "Game drawn by stalemate"]

1. d4 {[%clk 0:03:00.9]} 1... Nf6 {[%clk 0:02:58.4]} 2. Nf3 {[%clk 0:02:59.3]}
2... e6 {[%clk 0:02:56.4]} 3. c4 {[%clk 0:02:59.8]} 3... c6 {[%clk 0:02:56.1]}
4. g3 {[%clk 0:03:00.2]} 4... d5 {[%clk 0:02:56.4]} 5. Nbd2 {[%clk 0:03:00]}
5... b6 {[%clk 0:02:55.5]} 6. Bg2 {[%clk 0:03:00.2]} 6... Ba6 {[%clk 0:02:56]}
7. O-O {[%clk 0:02:57.8]} 7... Nbd7 {[%clk 0:02:54.1]} 8. Qc2 {[%clk 0:02:55.7]}
8... Be7 {[%clk 0:02:53.2]} 9. b3 {[%clk 0:02:50.9]} 9... O-O {[%clk 0:02:52.6]}
10. e4 {[%clk 0:02:51.4]} 10... Rc8 {[%clk 0:02:50.4]} 11. Re1 {[%clk
0:02:24.7]} 11... c5 {[%clk 0:02:47.4]} 12. e5 {[%clk 0:02:18.3]} 12... Ne8
{[%clk 0:02:45]} 13. cxd5 {[%clk 0:02:12.3]} 13... cxd4 {[%clk 0:02:43.9]} 14.
Qe4 {[%clk 0:02:11.2]} 14... Bb7 {[%clk 0:02:37.6]} 15. Qxd4 {[%clk 0:01:57.2]}
15... Bxd5 {[%clk 0:02:37.3]} 16. Bb2 {[%clk 0:01:54]} 16... Nc7 {[%clk
0:02:34.9]} 17. Ne4 {[%clk 0:01:49.4]} 17... Nc5 {[%clk 0:02:34.1]} 18. Nd6
{[%clk 0:01:46]} 18... Rb8 {[%clk 0:02:29.7]} 19. Rad1 {[%clk 0:01:41.7]} 19...
Ne8 {[%clk 0:02:28.6]} 20. Nxe8 {[%clk 0:01:22.5]} 20... Rxe8 {[%clk 0:02:25]}
21. h4 {[%clk 0:01:20.3]} 21... Qc7 {[%clk 0:02:11]} 22. h5 {[%clk 0:01:18.1]}
22... Qb7 {[%clk 0:02:09.8]} 23. Nh4 {[%clk 0:01:14.1]} 23... Rbd8 {[%clk
0:02:02.7]} 24. Qg4 {[%clk 0:01:04.5]} 24... Bxh4 {[%clk 0:01:57.2]} 25. Bxd5
{[%clk 0:00:57]} 25... Rxd5 {[%clk 0:01:56.5]} 26. h6 {[%clk 0:00:44.7]} 26...
g6 {[%clk 0:01:34.5]} 27. Qxh4 {[%clk 0:00:34.6]} 27... Qe7 {[%clk 0:01:34.3]}
28. Qxe7 {[%clk 0:00:21.2]} 28... Rxe7 {[%clk 0:01:35.2]} 29. Rxd5 {[%clk
0:00:21.2]} 29... exd5 {[%clk 0:01:35.6]} 30. Rd1 {[%clk 0:00:21.8]} 30... Rd7
{[%clk 0:01:35.5]} 31. Bd4 {[%clk 0:00:20.2]} 31... Kf8 {[%clk 0:01:31.9]} 32.
f4 {[%clk 0:00:18.7]} 32... Ke7 {[%clk 0:01:28]} 33. Kg2 {[%clk 0:00:19.2]}
33... Ke6 {[%clk 0:01:24.4]} 34. Kf3 {[%clk 0:00:18.9]} 34... Rc7 {[%clk
0:01:23.7]} 35. g4 {[%clk 0:00:17.2]} 35... Ne4 {[%clk 0:01:20.8]} 36. Ke3
{[%clk 0:00:14.5]} 36... Rc2 {[%clk 0:01:18.4]} 37. Rf1 {[%clk 0:00:13.6]} 37...
Ng3 {[%clk 0:01:13.4]} 38. Rf3 {[%clk 0:00:13.4]} 38... Ne2 {[%clk 0:01:13.6]}
39. f5+ {[%clk 0:00:12.7]} 39... Ke7 {[%clk 0:01:12.6]} 40. fxg6 {[%clk
0:00:08.2]} 40... fxg6 {[%clk 0:01:10.7]} 41. Kd3 {[%clk 0:00:08.1]} 41... Rxa2
{[%clk 0:01:02.1]} 42. Rf6 {[%clk 0:00:06.4]} 42... Nxd4 {[%clk 0:00:59.4]} 43.
Kxd4 {[%clk 0:00:06.4]} 43... Rd2+ {[%clk 0:00:59.3]} 44. Ke3 {[%clk 0:00:06.1]}
44... Rg2 {[%clk 0:00:57.5]} 45. Rc6 {[%clk 0:00:05.8]} 45... Rxg4 {[%clk
0:00:56.8]} 46. Rc7+ {[%clk 0:00:06.2]} 46... Ke6 {[%clk 0:00:57.3]} 47. Rxa7
{[%clk 0:00:06.1]} 47... Kxe5 {[%clk 0:00:54.2]} 48. Rxh7 {[%clk 0:00:06.6]}
48... Rg3+ {[%clk 0:00:52]} 49. Kd2 {[%clk 0:00:06.3]} 49... Rxb3 {[%clk
0:00:52.5]} 50. Rg7 {[%clk 0:00:06.7]} 50... Kf6 {[%clk 0:00:51.8]} 51. Rb7
{[%clk 0:00:06]} 51... Rh3 {[%clk 0:00:49.6]} 52. Rxb6+ {[%clk 0:00:05.8]} 52...
Kf5 {[%clk 0:00:50]} 53. Rb5 {[%clk 0:00:05.9]} 53... Rxh6 {[%clk 0:00:49.6]}
54. Rxd5+ {[%clk 0:00:05.8]} 54... Kf4 {[%clk 0:00:50.1]} 55. Ke1 {[%clk
0:00:05]} 55... Rh1+ {[%clk 0:00:48.6]} 56. Kf2 {[%clk 0:00:05]} 56... Rh2+
{[%clk 0:00:49.2]} 57. Kg1 {[%clk 0:00:05.2]} 57... Ra2 {[%clk 0:00:50.1]} 58.
Rd3 {[%clk 0:00:05.2]} 58... g5 {[%clk 0:00:49.7]} 59. Rc3 {[%clk 0:00:05.5]}
59... g4 {[%clk 0:00:50]} 60. Rb3 {[%clk 0:00:05.9]} 60... Rc2 {[%clk
0:00:49.5]} 61. Ra3 {[%clk 0:00:05.6]} 61... g3 {[%clk 0:00:49.5]} 62. Rb3
{[%clk 0:00:05.8]} 62... Kg4 {[%clk 0:00:48.6]} 63. Rb8 {[%clk 0:00:05.3]} 63...
Rc4 {[%clk 0:00:46.4]} 64. Rg8+ {[%clk 0:00:05.2]} 64... Kf3 {[%clk 0:00:46.8]}
65. Rf8+ {[%clk 0:00:05.3]} 65... Rf4 {[%clk 0:00:47.2]} 66. Rxf4+ {[%clk
0:00:05.8]} 66... Kxf4 {[%clk 0:00:48.1]} 67. Kg2 {[%clk 0:00:06.3]} 67... Kg4
{[%clk 0:00:49]} 68. Kg1 {[%clk 0:00:06.7]} 68... Kf3 {[%clk 0:00:49.9]} 69. Kf1
{[%clk 0:00:06.8]} 69... g2+ {[%clk 0:00:50.8]} 70. Kg1 {[%clk 0:00:06.6]} 70...
Kg3 {[%clk 0:00:51.7]} 1/2-1/2

[Event "*** Titled Tuesday Blitz"]
[Site "Chess.com"]
[Date "2020.04.07"]
[Round "8"]
[White "arminmusovic"]
[Black "Gabrielian_Artur"]
[Result "1-0"]
[WhiteElo "2529"]
[BlackElo "2709"]
[TimeControl "180+1"]
[EndTime "14:35:02 PDT"]
[Termination "arminmusovic won by resignation"]

1. a3 {[%clk 0:03:00.9]} 1... Nf6 {[%clk 0:02:59.6]} 2. Nc3 {[%clk 0:03:00.9]}
2... g6 {[%clk 0:02:58.9]} 3. e4 {[%clk 0:03:00.3]} 3... d6 {[%clk 0:02:54]} 4.
d4 {[%clk 0:03:00.5]} 4... Bg7 {[%clk 0:02:53.9]} 5. Bg5 {[%clk 0:03:01.1]} 5...
h6 {[%clk 0:02:53.4]} 6. Bh4 {[%clk 0:03:01]} 6... O-O {[%clk 0:02:51.5]} 7. f4
{[%clk 0:03:00.8]} 7... c6 {[%clk 0:02:12]} 8. Be2 {[%clk 0:02:50.4]} 8... Qb6
{[%clk 0:02:08.7]} 9. Nf3 {[%clk 0:02:49.5]} 9... Bg4 {[%clk 0:02:02.4]} 10. e5
{[%clk 0:02:41.9]} 10... Nd5 {[%clk 0:01:57.9]} 11. Nxd5 {[%clk 0:02:38.3]}
11... cxd5 {[%clk 0:01:58]} 12. Bxe7 {[%clk 0:02:36.8]} 12... Re8 {[%clk
0:01:51.4]} 13. Bxd6 {[%clk 0:02:32.5]} 13... Nc6 {[%clk 0:01:50.1]} 14. O-O
{[%clk 0:02:27.1]} 14... Bxf3 {[%clk 0:01:49.6]} 15. Bxf3 {[%clk 0:02:27.7]}
15... Nxd4 {[%clk 0:01:48.9]} 16. Kh1 {[%clk 0:02:28.3]} 16... Nf5 {[%clk
0:01:47.9]} 17. Qxd5 {[%clk 0:02:22.9]} 17... Rad8 {[%clk 0:01:30.8]} 18. Qxb7
{[%clk 0:02:19.6]} 18... Nxd6 {[%clk 0:01:28.6]} 19. Qxb6 {[%clk 0:02:19.3]}
19... axb6 {[%clk 0:01:28.4]} 20. exd6 {[%clk 0:02:09.4]} 20... Bxb2 {[%clk
0:01:18.4]} 21. Rab1 {[%clk 0:02:09.8]} 21... Bxa3 {[%clk 0:01:16.7]} 22. d7
{[%clk 0:02:10.2]} 22... Re6 {[%clk 0:00:59.1]} 23. Rfd1 {[%clk 0:01:58]} 23...
Bc5 {[%clk 0:00:54.1]} 24. Bb7 {[%clk 0:01:36.4]} 24... Kf8 {[%clk 0:00:50.9]}
25. Rf1 {[%clk 0:01:26.6]} 25... Re2 {[%clk 0:00:44.1]} 26. Bc8 {[%clk
0:01:19.4]} 26... Rxc2 {[%clk 0:00:43.4]} 27. f5 {[%clk 0:01:20]} 27... gxf5
{[%clk 0:00:40.3]} 28. Rxf5 {[%clk 0:01:19.2]} 28... Rf2 {[%clk 0:00:39.9]} 29.
Rh5 {[%clk 0:01:13.4]} 29... Rf6 {[%clk 0:00:36.6]} 30. Rd1 {[%clk 0:01:11]}
30... Ke7 {[%clk 0:00:33.1]} 31. Re5+ {[%clk 0:01:09.5]} 31... Re6 {[%clk
0:00:32.9]} 32. Rf5 {[%clk 0:01:09.1]} 32... Rf6 {[%clk 0:00:24.3]} 33. Re5+
{[%clk 0:01:08.8]} 33... Re6 {[%clk 0:00:24.5]} 34. Red5 {[%clk 0:01:09.5]}
34... Bd6 {[%clk 0:00:21.7]} 35. Rb5 {[%clk 0:01:06.3]} 35... Bc5 {[%clk
0:00:19.4]} 36. Rb3 {[%clk 0:01:06.6]} 36... Rd6 {[%clk 0:00:19]} 37. Re1+
{[%clk 0:01:07.1]} 37... Re6 {[%clk 0:00:17.1]} 38. Rd1 {[%clk 0:01:06.9]} 38...
Rd6 {[%clk 0:00:17]} 39. Re1+ {[%clk 0:01:05.6]} 39... Re6 {[%clk 0:00:17.2]}
40. Rf1 {[%clk 0:01:04.6]} 40... Rd6 {[%clk 0:00:16.1]} 41. Rbf3 {[%clk
0:01:03.3]} 41... Rf8 {[%clk 0:00:16.3]} 42. Re1+ {[%clk 0:01:00.9]} 42... Kd8
{[%clk 0:00:16.6]} 43. Rf5 {[%clk 0:00:55.8]} 43... Kc7 {[%clk 0:00:15.9]} 44.
g3 {[%clk 0:00:48.9]} 44... Re6 {[%clk 0:00:16]} 45. d8=Q+ {[%clk 0:00:36.4]}
45... Rxd8 {[%clk 0:00:15.8]} 46. Bxe6 {[%clk 0:00:36.6]} 46... fxe6 {[%clk
0:00:16.2]} 47. Rxe6 {[%clk 0:00:37.3]} 47... Rd1+ {[%clk 0:00:11.5]} 48. Kg2
{[%clk 0:00:37.3]} 48... Rd2+ {[%clk 0:00:12]} 49. Kh3 {[%clk 0:00:37.9]} 49...
Kb7 {[%clk 0:00:12.1]} 50. Rxh6 {[%clk 0:00:35.3]} 50... Bg1 {[%clk 0:00:12.2]}
51. Kg4 {[%clk 0:00:31.8]} 51... Bxh2 {[%clk 0:00:11.9]} 52. Rf1 {[%clk
0:00:27.1]} 52... Rg2 {[%clk 0:00:06.4]} 53. Rh3 {[%clk 0:00:25.7]} 53... Bg1
{[%clk 0:00:05.9]} 54. Kf3 {[%clk 0:00:24.8]} 54... Rh2 {[%clk 0:00:04.7]} 55.
Rxh2 {[%clk 0:00:24.4]} 55... Bxh2 {[%clk 0:00:05.1]} 56. Kg2 {[%clk 0:00:25]}
56... Bxg3 {[%clk 0:00:05.5]} 57. Kxg3 {[%clk 0:00:25.6]} 57... Ka6 {[%clk
0:00:06]} 58. Kf3 {[%clk 0:00:23.3]} 1-0

[Event "*** Titled Tuesday Blitz"]
[Site "Chess.com"]
[Date "2020.04.07"]
[Round "8"]
[White "ferdipy"]
[Black "The_Machine04"]
[Result "1-0"]
[WhiteElo "2185"]
[BlackElo "2356"]
[TimeControl "180+1"]
[EndTime "14:35:08 PDT"]
[Termination "ferdipy won by checkmate"]

1. e4 {[%clk 0:02:59.5]} 1... d6 {[%clk 0:02:56.7]} 2. d4 {[%clk 0:02:57.3]}
2... Nf6 {[%clk 0:02:56.9]} 3. Nc3 {[%clk 0:02:56.4]} 3... e5 {[%clk 0:02:56.7]}
4. Nf3 {[%clk 0:02:54.2]} 4... Nbd7 {[%clk 0:02:52]} 5. h3 {[%clk 0:02:52.7]}
5... Be7 {[%clk 0:02:49.7]} 6. Bc4 {[%clk 0:02:50.5]} 6... c6 {[%clk 0:02:36.3]}
7. a4 {[%clk 0:02:50.3]} 7... h6 {[%clk 0:02:35.8]} 8. Be3 {[%clk 0:02:50.5]}
8... Qc7 {[%clk 0:02:36]} 9. Qd2 {[%clk 0:02:50.4]} 9... Nf8 {[%clk 0:02:33.5]}
10. O-O {[%clk 0:02:48]} 10... Ng6 {[%clk 0:02:33.5]} 11. dxe5 {[%clk 0:02:48]}
11... dxe5 {[%clk 0:02:33.3]} 12. Rad1 {[%clk 0:02:45]} 12... Nh5 {[%clk
0:02:30.4]} 13. Ne2 {[%clk 0:02:43.1]} 13... a5 {[%clk 0:02:21.5]} 14. c3 {[%clk
0:02:32.2]} 14... Bd7 {[%clk 0:02:18.6]} 15. Qc2 {[%clk 0:02:29.8]} 15... Rd8
{[%clk 0:02:15.7]} 16. Qb3 {[%clk 0:02:29.5]} 16... O-O {[%clk 0:01:59.9]} 17.
Bb6 {[%clk 0:02:28.4]} 17... Qc8 {[%clk 0:02:00.1]} 18. Bxd8 {[%clk 0:02:28.2]}
18... Rxd8 {[%clk 0:02:01]} 19. Bxf7+ {[%clk 0:02:26.3]} 19... Kh7 {[%clk
0:01:58.3]} 20. Bxg6+ {[%clk 0:02:26.5]} 20... Kxg6 {[%clk 0:01:59.2]} 21. Nxe5+
{[%clk 0:02:26.7]} 21... Kh7 {[%clk 0:01:59]} 22. Qf7 {[%clk 0:02:15.3]} 22...
Nf6 {[%clk 0:01:56.3]} 23. Qxe7 {[%clk 0:02:10.9]} 23... Re8 {[%clk 0:01:56.3]}
24. Qd6 {[%clk 0:01:55.7]} 24... Bxh3 {[%clk 0:01:55.8]} 25. Ng3 {[%clk
0:01:21.1]} 25... Re6 {[%clk 0:01:47.5]} 26. Qd8 {[%clk 0:01:03.1]} 26... Rxe5
{[%clk 0:01:40.4]} 27. Qxc8 {[%clk 0:01:01.2]} 27... Bxc8 {[%clk 0:01:41.3]} 28.
f4 {[%clk 0:00:58.4]} 28... Re7 {[%clk 0:01:37.7]} 29. Rd8 {[%clk 0:00:56.8]}
29... Bg4 {[%clk 0:01:36.8]} 30. c4 {[%clk 0:00:52.7]} 30... h5 {[%clk
0:01:26.8]} 31. e5 {[%clk 0:00:51.8]} 31... Nd7 {[%clk 0:01:25]} 32. Rf2 {[%clk
0:00:48.4]} 32... Nc5 {[%clk 0:01:24.6]} 33. Rfd2 {[%clk 0:00:36.2]} 33... Nxa4
{[%clk 0:01:23]} 34. Ne4 {[%clk 0:00:36.4]} 34... Kg6 {[%clk 0:01:08.2]} 35. Nd6
{[%clk 0:00:30.4]} 35... Nc5 {[%clk 0:01:06.1]} 36. Rf2 {[%clk 0:00:25.8]} 36...
Kh7 {[%clk 0:01:02.6]} 37. Re8 {[%clk 0:00:23.7]} 37... Rd7 {[%clk 0:00:55.2]}
38. Ra8 {[%clk 0:00:19.2]} 38... Nd3 {[%clk 0:00:54.3]} 39. Rf1 {[%clk
0:00:17.9]} 39... Be2 {[%clk 0:00:51.8]} 40. Ra1 {[%clk 0:00:17.6]} 40... Nxf4
{[%clk 0:00:50.6]} 41. R8xa5 {[%clk 0:00:18.3]} 41... Ne6 {[%clk 0:00:44]} 42.
Ra8 {[%clk 0:00:16]} 42... Re7 {[%clk 0:00:29.4]} 43. R1a7 {[%clk 0:00:16]}
43... Nc5 {[%clk 0:00:29.2]} 44. Re8 {[%clk 0:00:15.1]} 44... Rd7 {[%clk
0:00:26]} 45. Raa8 {[%clk 0:00:15.3]} 45... Bg4 {[%clk 0:00:19.6]} 46. Rad8
{[%clk 0:00:13.7]} 46... Rc7 {[%clk 0:00:18.9]} 47. Rh8+ {[%clk 0:00:13.6]}
47... Kg6 {[%clk 0:00:18.9]} 48. Ne8 {[%clk 0:00:12.7]} 48... Re7 {[%clk
0:00:18.4]} 49. Rd6+ {[%clk 0:00:13.2]} 49... Ne6 {[%clk 0:00:18.5]} 50. Rg8
{[%clk 0:00:12.2]} 50... Kf5 {[%clk 0:00:17.5]} 51. Rh8 {[%clk 0:00:10.5]} 51...
Kxe5 {[%clk 0:00:17.7]} 52. Rd7 {[%clk 0:00:09.9]} 52... Nf4 {[%clk 0:00:16.3]}
53. Rxe7+ {[%clk 0:00:09.9]} 53... Kd4 {[%clk 0:00:16.1]} 54. Rxg7 {[%clk
0:00:10.8]} 54... Ne2+ {[%clk 0:00:15.8]} 55. Kf2 {[%clk 0:00:11.4]} 55... Kxc4
{[%clk 0:00:16.3]} 56. Rxg4+ {[%clk 0:00:11.6]} 56... hxg4 {[%clk 0:00:16.4]}
57. Kxe2 {[%clk 0:00:12.5]} 57... Kb3 {[%clk 0:00:16.4]} 58. Nf6 {[%clk
0:00:13.4]} 58... c5 {[%clk 0:00:16.5]} 59. Nxg4 {[%clk 0:00:14.3]} 59... c4
{[%clk 0:00:16.8]} 60. Ne5 {[%clk 0:00:14.6]} 60... b5 {[%clk 0:00:16.6]} 61.
Rb8 {[%clk 0:00:13.9]} 61... b4 {[%clk 0:00:16.9]} 62. Nxc4 {[%clk 0:00:13.4]}
62... Kxc4 {[%clk 0:00:16.7]} 63. Kd2 {[%clk 0:00:14]} 63... Kb3 {[%clk
0:00:16.7]} 64. g4 {[%clk 0:00:14.3]} 64... Kxb2 {[%clk 0:00:16.6]} 65. Rxb4+
{[%clk 0:00:14.4]} 65... Ka3 {[%clk 0:00:17.5]} 66. Rb8 {[%clk 0:00:13.3]} 66...
Ka4 {[%clk 0:00:18.4]} 67. g5 {[%clk 0:00:13.6]} 67... Ka5 {[%clk 0:00:19.3]}
68. g6 {[%clk 0:00:13.9]} 68... Ka6 {[%clk 0:00:20.2]} 69. g7 {[%clk 0:00:13.8]}
69... Ka7 {[%clk 0:00:21.1]} 70. Rb1 {[%clk 0:00:13.6]} 70... Ka6 {[%clk
0:00:21.4]} 71. g8=Q {[%clk 0:00:13.6]} 71... Ka7 {[%clk 0:00:22.3]} 72. Qa2#
{[%clk 0:00:13.2]} 1-0

[Event "*** Titled Tuesday Blitz"]
[Site "Chess.com"]
[Date "2020.04.07"]
[Round "8"]
[White "theprosecution1"]
[Black "vlad_Sid"]
[Result "1-0"]
[WhiteElo "2814"]
[BlackElo "2636"]
[TimeControl "180+1"]
[EndTime "14:35:10 PDT"]
[Termination "theprosecution1 won by resignation"]

1. e4 {[%clk 0:03:00.9]} 1... c6 {[%clk 0:02:59.2]} 2. Nc3 {[%clk 0:03:00.9]}
2... d5 {[%clk 0:03:00.1]} 3. Nf3 {[%clk 0:03:01.8]} 3... dxe4 {[%clk
0:03:00.2]} 4. Nxe4 {[%clk 0:03:01.7]} 4... Nf6 {[%clk 0:03:01.1]} 5. Qe2 {[%clk
0:03:02.3]} 5... Nxe4 {[%clk 0:03:00.7]} 6. Qxe4 {[%clk 0:03:03.2]} 6... Qa5
{[%clk 0:03:01.5]} 7. Bc4 {[%clk 0:03:00.1]} 7... Bf5 {[%clk 0:02:59.9]} 8. Qf4
{[%clk 0:02:52.1]} 8... e6 {[%clk 0:02:59.9]} 9. O-O {[%clk 0:02:51.6]} 9... Nd7
{[%clk 0:02:55.3]} 10. d3 {[%clk 0:02:51.8]} 10... Be7 {[%clk 0:02:55]} 11. h3
{[%clk 0:02:48.7]} 11... h6 {[%clk 0:02:51.2]} 12. Bd2 {[%clk 0:02:48.9]} 12...
Qb6 {[%clk 0:02:42.5]} 13. Rfe1 {[%clk 0:02:48.1]} 13... O-O {[%clk 0:02:16.6]}
14. Bc3 {[%clk 0:02:43.6]} 14... Bf6 {[%clk 0:02:13.5]} 15. Bxf6 {[%clk
0:02:18.6]} 15... Nxf6 {[%clk 0:02:14.4]} 16. Nd4 {[%clk 0:02:19.2]} 16... Bg6
{[%clk 0:02:11.4]} 17. Bb3 {[%clk 0:02:15.9]} 17... Rad8 {[%clk 0:02:07.1]} 18.
Nf3 {[%clk 0:02:15.5]} 18... Nd5 {[%clk 0:01:52.6]} 19. Qg3 {[%clk 0:02:15.4]}
19... Bf5 {[%clk 0:01:49.6]} 20. Re2 {[%clk 0:02:03.8]} 20... Qc7 {[%clk
0:01:48.9]} 21. Ne5 {[%clk 0:01:45.1]} 21... f6 {[%clk 0:01:38.6]} 22. Nf3
{[%clk 0:01:43.3]} 22... Qxg3 {[%clk 0:01:37.8]} 23. fxg3 {[%clk 0:01:44.2]}
23... e5 {[%clk 0:01:37.9]} 24. d4 {[%clk 0:01:43.1]} 24... e4 {[%clk
0:01:21.8]} 25. Nd2 {[%clk 0:01:42.7]} 25... Rfe8 {[%clk 0:01:20]} 26. Rae1
{[%clk 0:01:41.7]} 26... Kf8 {[%clk 0:00:42.7]} 27. Nxe4 {[%clk 0:01:37.2]}
27... b6 {[%clk 0:00:42.3]} 28. Kf2 {[%clk 0:01:28.6]} 28... h5 {[%clk
0:00:38.4]} 29. a3 {[%clk 0:01:26.3]} 29... a5 {[%clk 0:00:35.8]} 30. c3 {[%clk
0:01:14.1]} 30... Nc7 {[%clk 0:00:32.8]} 31. Kf3 {[%clk 0:00:47.5]} 31... Bc8
{[%clk 0:00:28.7]} 32. Nd2 {[%clk 0:00:44.8]} 32... c5 {[%clk 0:00:25.8]} 33.
Rxe8+ {[%clk 0:00:41.2]} 33... Nxe8 {[%clk 0:00:26.7]} 34. Nc4 {[%clk
0:00:33.9]} 34... cxd4 {[%clk 0:00:22]} 35. Nxb6 {[%clk 0:00:34]} 35... dxc3
{[%clk 0:00:21.1]} 36. bxc3 {[%clk 0:00:30.3]} 36... Rd3+ {[%clk 0:00:20.5]} 37.
Re3 {[%clk 0:00:30.1]} 37... Bb7+ {[%clk 0:00:21]} 38. Ke2 {[%clk 0:00:24.9]}
38... Rxe3+ {[%clk 0:00:20.6]} 39. Kxe3 {[%clk 0:00:25.8]} 39... Bxg2 {[%clk
0:00:21.5]} 40. h4 {[%clk 0:00:26.7]} 40... Nd6 {[%clk 0:00:18.3]} 41. c4 {[%clk
0:00:24.2]} 41... Nf5+ {[%clk 0:00:16.3]} 42. Kf4 {[%clk 0:00:23.8]} 42... Nd4
{[%clk 0:00:16.2]} 43. Bd1 {[%clk 0:00:24.4]} 43... Ke7 {[%clk 0:00:15.4]} 44.
Bxh5 {[%clk 0:00:22.7]} 44... Kd6 {[%clk 0:00:12.1]} 45. Ke3 {[%clk 0:00:17.4]}
45... Nc2+ {[%clk 0:00:11.5]} 46. Kd3 {[%clk 0:00:16.7]} 46... Nxa3 {[%clk
0:00:11.3]} 47. Na4 {[%clk 0:00:15.6]} 47... Bc6 {[%clk 0:00:09.1]} 48. Bd1
{[%clk 0:00:12.6]} 48... Bxa4 {[%clk 0:00:06.6]} 49. Bxa4 {[%clk 0:00:13.5]}
49... Kc5 {[%clk 0:00:07.5]} 50. Bb3 {[%clk 0:00:12.5]} 50... Kb4 {[%clk
0:00:07.4]} 51. Ba2 {[%clk 0:00:12.4]} 51... a4 {[%clk 0:00:04.8]} 52. g4 {[%clk
0:00:11]} 52... g6 {[%clk 0:00:03.5]} 53. h5 {[%clk 0:00:10.9]} 53... gxh5
{[%clk 0:00:02.2]} 54. gxh5 {[%clk 0:00:11.8]} 54... Nxc4 {[%clk 0:00:02.6]} 55.
Bxc4 {[%clk 0:00:11.3]} 55... a3 {[%clk 0:00:03.3]} 56. Ba2 {[%clk 0:00:10.6]}
1-0